Department Family,Entity,Date,Expense Type,Expense Area,Supplier,Transaction Number,Amount,Description
Ministry of justice,CAFCASS,29/09/2022,Building Fit Out & Enhancement,HQ,APL Construction Services Ltd,1115926,"32,458.50",Brighton fit-out
Ministry of justice,CAFCASS,06/09/2022,Rent,HQ,AY UK LTD re London & Continental Railwa,1114865,"35,241.90",Croydon Rent
Ministry of justice,CAFCASS,06/09/2022,Service Charge,HQ,AY UK LTD re London & Continental Railwa,1114865,"13,636.78",Croydon Serv Chg
Ministry of justice,CAFCASS,06/09/2022,Rent,HQ,AY UK LTD re London & Continental Railwa,1114866,"74,820.84",Manchester 7F Rent
Ministry of justice,CAFCASS,06/09/2022,Service Charge,HQ,AY UK LTD re London & Continental Railwa,1114866,"20,866.86",Manchester 7F Serv Chg
Ministry of justice,CAFCASS,14/09/2022,Rent,HQ,AY UK LTD re Sports C T t/a Avison Young,1115316,"68,888.33",Bloomsbury Rent
Ministry of justice,CAFCASS,14/09/2022,Service Charge,HQ,AY UK LTD re Sports C T t/a Avison Young,1115316,"26,458.18",Bloomsbury Serv Chg
Ministry of justice,CAFCASS,20/09/2022,Partnership Commissioned CS,HQ,Child Action Northwest,1115543,"33,022.50",Improving Child and Family Arrangements  CANW North
Ministry of justice,CAFCASS,20/09/2022,Partnership Commissioned CS,HQ,Child Action Northwest,1115544,"43,200.00",Improving Child and Family Arrangements  CANW West
Ministry of justice,CAFCASS,22/09/2022,Partnership Commissioned CS,HQ,Children's Links (ICFA),1115606,"25,500.00",Improving Child and Family Arrangements  Children's Links
Ministry of justice,CAFCASS,28/09/2022,Rent,HQ,Colliers International Common Client Acc,1115850,"26,128.78",Birmingham Rent
Ministry of justice,CAFCASS,28/09/2022,Service Charge,HQ,Colliers International Common Client Acc,1115850,"5,409.90",Birmingham Serv Chg
Ministry of justice,CAFCASS,06/09/2022,Agency Practitioners,Op Service Areas,Community Resourcing t/a Retinue Solutio,1114823,"55,818.32",Agency Staff
Ministry of justice,CAFCASS,06/09/2022,Temp Business Support Staff,HQ,Community Resourcing t/a Retinue Solutio,1114823,"6,299.28",Reed Temp Staff
Ministry of justice,CAFCASS,06/09/2022,Agency Practitioners,Op Service Areas,Community Resourcing t/a Retinue Solutio,1114824,"55,196.16",Agency Staff
Ministry of justice,CAFCASS,06/09/2022,Temp Business Support Staff,HQ,Community Resourcing t/a Retinue Solutio,1114824,"6,083.12",Reed Temp Staff
Ministry of justice,CAFCASS,12/09/2022,Agency Practitioners,Op Service Areas,Community Resourcing t/a Retinue Solutio,1115151,"46,764.15",Agency Staff
Ministry of justice,CAFCASS,12/09/2022,Temp Business Support Staff,HQ,Community Resourcing t/a Retinue Solutio,1115151,"6,583.27",Reed Temp Staff
Ministry of justice,CAFCASS,27/09/2022,Agency Practitioners,Op Service Areas,Community Resourcing t/a Retinue Solutio,1115735,"59,755.63",Agency Staff
Ministry of justice,CAFCASS,27/09/2022,Agency Practitioners,HQ,Community Resourcing t/a Retinue Solutio,1115735,"1,137.38",Agency Staff
Ministry of justice,CAFCASS,27/09/2022,Temp Business Support Staff,HQ,Community Resourcing t/a Retinue Solutio,1115735,"8,769.55",Reed Temp Staff
Ministry of justice,CAFCASS,27/09/2022,Temp Business Support Staff,Op Service Areas,Community Resourcing t/a Retinue Solutio,1115735,"1,227.28",Reed Temp Staff
Ministry of justice,CAFCASS,28/09/2022,Agency Practitioners,Op Service Areas,Community Resourcing t/a Retinue Solutio,1115855,"54,964.78",Agency Staff
Ministry of justice,CAFCASS,28/09/2022,Temp Business Support Staff,HQ,Community Resourcing t/a Retinue Solutio,1115855,"10,725.23",Reed Temp Staff
Ministry of justice,CAFCASS,28/09/2022,Temp Business Support Staff,Op Service Areas,Community Resourcing t/a Retinue Solutio,1115855,334.72,Reed Temp Staff
Ministry of justice,CAFCASS,08/09/2022,T&S - UK (Non-Taxable),HQ,Corporate Travel Mngmnt North t/a CTM,1115102,"12,168.65",Corporate Travel Management
Ministry of justice,CAFCASS,08/09/2022,T&S - UK (Non-Taxable),Op Service Areas,Corporate Travel Mngmnt North t/a CTM,1115102,"11,515.90",Corporate Travel Management
Ministry of justice,CAFCASS,08/09/2022,T&S - UK (Non-Taxable) hotel,Op Service Areas,Corporate Travel Mngmnt North t/a CTM,1115102,"4,964.93",Corporate Travel Management  hotel
Ministry of justice,CAFCASS,08/09/2022,T&S - UK (Non-Taxable) hotel,HQ,Corporate Travel Mngmnt North t/a CTM,1115102,"4,312.17",Corporate Travel Management  hotel
Ministry of justice,CAFCASS,21/09/2022,Building Fit Out & Enhancement,HQ,Estilo Interiors Ltd,1115584,"35,541.60",Office Furniture
Ministry of justice,CAFCASS,22/09/2022,Contact rechargeable,HQ,Family Action,1115638,"54,713.75",Aug-22 Claim payment Separated Parent Information Programmes  course
Ministry of justice,CAFCASS,21/09/2022,Building Fit Out & Enhancement,HQ,Gresham Office Furniture Ltd,1115597,"38,581.92",Office Furniture
Ministry of justice,CAFCASS,06/09/2022,Computer accessories,HQ,Jigsaw24,1114913,"66,553.20",Mobile phone accessories
Ministry of justice,CAFCASS,06/09/2022,Other IT contracted costs,HQ,Jigsaw24,1114914,"38,430.00",iphone 13 rentals x 2100 for 4 years
Ministry of justice,CAFCASS,23/09/2022,Other IT contracted costs,HQ,Jigsaw24,1115687,"38,430.00",iphone 13 rentals x 2100 for 4 years
Ministry of justice,CAFCASS,16/09/2022,Little Fish contracted costs,HQ,Little Fish (UK) Limited,1115397,"203,841.17",Technology services
Ministry of justice,CAFCASS,09/09/2022,Building Fit Out & Enhancement,HQ,Senator International Limited,1115148,"26,237.40",Office Furniture
Ministry of justice,CAFCASS,13/09/2022,Other IT contracted costs,HQ,Specialist Computer Centres Plc,1115233,"40,470.68",Laptops & Sleeves
Ministry of justice,CAFCASS,20/09/2022,Partnership Commissioned CS,HQ,Swan Family Centres Limited,1115471,"33,437.50",Improving Child and Family Arrangements  Swan Family SE
Ministry of justice,CAFCASS,07/09/2022,Rent,HQ,University of Warwick Science Park,1115015,"36,263.80",National Business Centre Rent
Ministry of justice,CAFCASS,07/09/2022,Service Charge,HQ,University of Warwick Science Park,1115015,"3,950.17",National Business Centre Serv Chg
Ministry of justice,CAFCASS,08/09/2022,Version 1,HQ,Version 1 Solutions Limited,1115039,"96,351.44",Technology services
